[Event "Titled Tuesday Blitz May 9 Late 2023"]
[White "Grigorov, Grigor"]
[Black "Grinev, Valeriy"]
[WhiteFideId "2907313"]
[BlackFideId "14117517"]
[WhiteElo "2510"]
[BlackElo "2366"]
[Result "1-0"]
[Round "02"]
[TimeControl "180+2"]
[Date "2023.05.09"]
[WhiteClock "0:00:07"]
[BlackClock "0:00:12"]

1. d4 {[%clk 0:03:00]}  c5 {[%clk 0:03:00]} 2. d5 {[%clk 0:03:00]}  d6 {[%clk 0:02:59]} 3. e4 {[%clk 0:02:59]}  g6 {[%clk 0:02:59]} 4. Nc3 {[%clk 0:02:58]}  Bg7 {[%clk 0:02:59]} 5. Bb5+ {[%clk 0:02:56]}  Nd7 {[%clk 0:02:58]} 6. a4 {[%clk 0:02:56]}  Nf6 {[%clk 0:02:56]} 7. Nf3 {[%clk 0:02:54]}  O-O {[%clk 0:02:57]} 8. a5 {[%clk 0:02:52]}  a6 {[%clk 0:02:56]} 9. Be2 {[%clk 0:02:52]}  Rb8 {[%clk 0:02:51]} 10. O-O {[%clk 0:02:45]}  b5 {[%clk 0:02:49]} 11. axb6 {[%clk 0:02:45]}  Qxb6 {[%clk 0:02:46]} 12. h3 {[%clk 0:02:43]}  h6 {[%clk 0:02:41]} 13. Nd2 {[%clk 0:02:41]}  Ra8 {[%clk 0:02:39]} 14. Nc4 {[%clk 0:02:41]}  Qb8 {[%clk 0:02:37]} 15. Na5 {[%clk 0:02:36]}  Bb7 {[%clk 0:02:35]} 16. Bf4 {[%clk 0:02:33]}  Rc8 {[%clk 0:02:29]} 17. Qd2 {[%clk 0:02:32]}  Kh7 {[%clk 0:02:29]} 18. Nc4 {[%clk 0:02:24]}  Qc7 {[%clk 0:02:26]} 19. Bg3 {[%clk 0:02:19]}  Rcb8 {[%clk 0:02:22]} 20. f4 {[%clk 0:02:15]}  Ne8 {[%clk 0:02:16]} 21. e5 {[%clk 0:02:01]}  a5 {[%clk 0:02:13]} 22. Bd3 {[%clk 0:01:54]}  Ba6 {[%clk 0:02:11]} 23. e6 {[%clk 0:01:29]}  fxe6 {[%clk 0:02:01]} 24. dxe6 {[%clk 0:01:24]}  Ndf6 {[%clk 0:01:58]} 25. Bxg6+ {[%clk 0:01:17]}  Kh8 {[%clk 0:01:45]} 26. b3 {[%clk 0:01:14]}  Bxc4 {[%clk 0:01:40]} 27. bxc4 {[%clk 0:01:14]}  Rb4 {[%clk 0:01:29]} 28. Qd3 {[%clk 0:01:07]}  Rab8 {[%clk 0:01:23]} 29. f5 {[%clk 0:01:05]}  Qb7 {[%clk 0:01:18]} 30. Rxa5 {[%clk 0:00:59]}  Ra8 {[%clk 0:00:57]} 31. Rfa1 {[%clk 0:00:34]}  Rxa5 {[%clk 0:00:54]} 32. Rxa5 {[%clk 0:00:35]}  Nc7 {[%clk 0:00:50]} 33. Nb5 {[%clk 0:00:20]}  Nxb5 {[%clk 0:00:48]} 34. Rxb5 {[%clk 0:00:20]}  Rxb5 {[%clk 0:00:48]} 35. cxb5 {[%clk 0:00:20]}  Ne4 {[%clk 0:00:45]} 36. Bf4 {[%clk 0:00:19]}  Bd4+ {[%clk 0:00:45]} 37. Kh2 {[%clk 0:00:19]}  Kg7 {[%clk 0:00:39]} 38. Qf3 {[%clk 0:00:17]}  d5 {[%clk 0:00:38]} 39. Qh5 {[%clk 0:00:16]}  Ng5 {[%clk 0:00:30]} 40. h4 {[%clk 0:00:12]}  Bf6 {[%clk 0:00:15]} 41. hxg5 {[%clk 0:00:12]}  Bxg5 {[%clk 0:00:16]} 42. Bxg5 {[%clk 0:00:11]}  hxg5 {[%clk 0:00:17]} 43. Qxg5 {[%clk 0:00:10]}  Qc7+ {[%clk 0:00:15]} 44. Qg3 {[%clk 0:00:10]}  Qb6 {[%clk 0:00:14]} 45. Qe5+ {[%clk 0:00:10]}  Kh6 {[%clk 0:00:14]} 46. Qxd5 {[%clk 0:00:09]}  Qxb5 {[%clk 0:00:14]} 47. Qd2+ {[%clk 0:00:08]}  Kg7 {[%clk 0:00:13]} 48. Qg5 {[%clk 0:00:08]}  Qb8+ {[%clk 0:00:12]} 49. Kh3 {[%clk 0:00:07]}  Qb2 {[%clk 0:00:13]} 50. Bf7+ {[%clk 0:00:06]}  Kh7 {[%clk 0:00:12]} 51. Qg6+ {[%clk 0:00:07]}  Kh8 {[%clk 0:00:12]} 52. Qh6# {[%clk 0:00:07]} 1-0


[Site "https://www.chess.com"]

[Event "Titled Tuesday Blitz May 9 Late 2023"]
[White "Holt, Conrad"]
[Black "Kokoszczynski, Jan"]
[WhiteFideId "2034387"]
[BlackFideId "1174460"]
[WhiteElo "2592"]
[BlackElo "2139"]
[Result "1-0"]
[Round "02"]
[TimeControl "180+2"]
[Date "2023.05.09"]
[WhiteClock "0:01:41"]
[BlackClock "0:00:43"]

1. d4 {[%clk 0:02:52]}  d5 {[%clk 0:02:59]} 2. c4 {[%clk 0:02:52]}  e6 {[%clk 0:02:59]} 3. Nc3 {[%clk 0:02:53]}  a6 {[%clk 0:02:59]} 4. cxd5 {[%clk 0:02:52]}  exd5 {[%clk 0:03:00]} 5. Bf4 {[%clk 0:02:52]}  c6 {[%clk 0:02:59]} 6. e3 {[%clk 0:02:52]}  Bd6 {[%clk 0:02:59]} 7. Bg3 {[%clk 0:02:53]}  Nf6 {[%clk 0:02:59]} 8. Bd3 {[%clk 0:02:52]}  O-O {[%clk 0:02:59]} 9. Qc2 {[%clk 0:02:52]}  Be6 {[%clk 0:02:54]} 10. Nf3 {[%clk 0:02:51]}  h6 {[%clk 0:02:53]} 11. Ne5 {[%clk 0:02:50]}  Qc7 {[%clk 0:02:30]} 12. f4 {[%clk 0:02:45]}  c5 {[%clk 0:02:13]} 13. Bh4 {[%clk 0:02:30]}  Nbd7 {[%clk 0:01:43]} 14. f5 {[%clk 0:02:25]}  Nxe5 {[%clk 0:01:44]} 15. dxe5 {[%clk 0:02:24]}  Bxe5 {[%clk 0:01:44]} 16. Bxf6 {[%clk 0:02:20]}  Bxf6 {[%clk 0:01:41]} 17. fxe6 {[%clk 0:02:19]}  fxe6 {[%clk 0:01:42]} 18. O-O {[%clk 0:02:19]}  b5 {[%clk 0:01:37]} 19. Qe2 {[%clk 0:02:14]}  b4 {[%clk 0:01:26]} 20. Na4 {[%clk 0:01:59]}  c4 {[%clk 0:01:18]} 21. Bc2 {[%clk 0:01:59]}  Rad8 {[%clk 0:01:02]} 22. Rae1 {[%clk 0:01:54]}  e5 {[%clk 0:00:57]} 23. Qg4 {[%clk 0:01:51]}  d4 {[%clk 0:00:57]} 24. exd4 {[%clk 0:01:46]}  exd4 {[%clk 0:00:58]} 25. Be4 {[%clk 0:01:43]}  Bg5 {[%clk 0:00:49]} 26. Qe6+ {[%clk 0:01:42]}  Kh8 {[%clk 0:00:46]} 27. Qg6 {[%clk 0:01:42]}  Be3+ {[%clk 0:00:46]} 28. Kh1 {[%clk 0:01:42]}  Rf4 {[%clk 0:00:43]} 29. Qh7# {[%clk 0:01:41]} 1-0


[Site "https://www.chess.com"]

[Event "Titled Tuesday Blitz May 9 Late 2023"]
[White "Ezat, Mohamed"]
[Black "Boruchovsky, Avital"]
[WhiteFideId "10600906"]
[BlackFideId "2800055"]
[WhiteElo "2386"]
[BlackElo "2450"]
[Result "0-1"]
[Round "02"]
[TimeControl "180+2"]
[Date "2023.05.09"]
[WhiteClock "0:00:00"]
[BlackClock "0:00:28"]

1. d4 {[%clk 0:02:57]}  d5 {[%clk 0:02:58]} 2. c4 {[%clk 0:02:56]}  e6 {[%clk 0:02:59]} 3. Nc3 {[%clk 0:02:55]}  c6 {[%clk 0:03:00]} 4. e4 {[%clk 0:02:54]}  dxe4 {[%clk 0:02:59]} 5. Nxe4 {[%clk 0:02:54]}  Bb4+ {[%clk 0:03:00]} 6. Bd2 {[%clk 0:02:54]}  Qxd4 {[%clk 0:02:59]} 7. Bxb4 {[%clk 0:02:54]}  Qxe4+ {[%clk 0:03:00]} 8. Be2 {[%clk 0:02:55]}  Qxg2 {[%clk 0:02:53]} 9. Qd6 {[%clk 0:01:31]}  Nd7 {[%clk 0:02:51]} 10. O-O-O {[%clk 0:01:24]}  Qg5+ {[%clk 0:02:43]} 11. f4 {[%clk 0:01:21]}  Qe7 {[%clk 0:02:43]} 12. Qd2 {[%clk 0:01:20]}  c5 {[%clk 0:02:40]} 13. Bc3 {[%clk 0:01:20]}  Ngf6 {[%clk 0:02:40]} 14. Bd3 {[%clk 0:01:14]}  b6 {[%clk 0:02:26]} 15. Nf3 {[%clk 0:00:55]}  Bb7 {[%clk 0:02:25]} 16. Rhf1 {[%clk 0:00:43]}  O-O-O {[%clk 0:02:16]} 17. Qe2 {[%clk 0:00:43]}  Kb8 {[%clk 0:02:13]} 18. Ne5 {[%clk 0:00:34]}  Ka8 {[%clk 0:02:03]} 19. Bc2 {[%clk 0:00:26]}  Nb8 {[%clk 0:01:43]} 20. Rg1 {[%clk 0:00:18]}  Rxd1+ {[%clk 0:01:39]} 21. Rxd1 {[%clk 0:00:17]}  Nc6 {[%clk 0:01:32]} 22. Nxc6 {[%clk 0:00:17]}  Bxc6 {[%clk 0:01:30]} 23. Qd2 {[%clk 0:00:17]}  Rc8 {[%clk 0:01:06]} 24. Be5 {[%clk 0:00:17]}  Ne8 {[%clk 0:01:06]} 25. Bc3 {[%clk 0:00:12]}  Kb7 {[%clk 0:00:56]} 26. b3 {[%clk 0:00:07]}  h6 {[%clk 0:00:54]} 27. Kb2 {[%clk 0:00:07]}  Rc7 {[%clk 0:00:46]} 28. Qe3 {[%clk 0:00:05]}  Rd7 {[%clk 0:00:46]} 29. Rxd7+ {[%clk 0:00:05]}  Qxd7 {[%clk 0:00:45]} 30. Qg3 {[%clk 0:00:05]}  Kc8 {[%clk 0:00:36]} 31. Be5 {[%clk 0:00:05]}  f6 {[%clk 0:00:35]} 32. Bc3 {[%clk 0:00:05]}  Nd6 {[%clk 0:00:35]} 33. Qg6 {[%clk 0:00:03]}  Nf5 {[%clk 0:00:32]} 34. Bxf5 {[%clk 0:00:03]}  exf5 {[%clk 0:00:32]} 35. Qh7 {[%clk 0:00:03]}  Be4 {[%clk 0:00:31]} 36. Qg8+ {[%clk 0:00:03]}  Kb7 {[%clk 0:00:31]} 37. Ka3 {[%clk 0:00:03]}  a6 {[%clk 0:00:28]} 38. h4 {[%clk 0:00:02]}  b5 {[%clk 0:00:27]} 39. cxb5 {[%clk 0:00:01]}  axb5 {[%clk 0:00:28]} 40. Kb2 {[%clk 0:00:01]}  b4 {[%clk 0:00:28]} 41. Be1 {[%clk 0:00:00]}  Qd4+ {[%clk 0:00:28]} 0-1


[Site "https://www.chess.com"]

[Event "Titled Tuesday Blitz May 9 Late 2023"]
[White "Grycel, Kamil"]
[Black "Milikow, Yoav"]
[WhiteFideId "1115499"]
[BlackFideId "2822237"]
[WhiteElo "2520"]
[BlackElo "2410"]
[Result "0-1"]
[Round "02"]
[TimeControl "180+2"]
[Date "2023.05.09"]
[WhiteClock "0:00:07"]
[BlackClock "0:00:50"]

1. d4 {[%clk 0:03:00]}  Nf6 {[%clk 0:02:56]} 2. Nf3 {[%clk 0:02:59]}  d5 {[%clk 0:02:55]} 3. Bf4 {[%clk 0:02:58]}  c5 {[%clk 0:02:51]} 4. c3 {[%clk 0:02:58]}  Nc6 {[%clk 0:02:46]} 5. e3 {[%clk 0:02:57]}  e6 {[%clk 0:02:32]} 6. Nbd2 {[%clk 0:02:56]}  cxd4 {[%clk 0:02:30]} 7. exd4 {[%clk 0:02:55]}  Nh5 {[%clk 0:02:30]} 8. Be5 {[%clk 0:02:51]}  f6 {[%clk 0:02:30]} 9. Bg3 {[%clk 0:02:50]}  g6 {[%clk 0:02:26]} 10. Bd3 {[%clk 0:02:49]}  Bd6 {[%clk 0:02:18]} 11. Qe2 {[%clk 0:02:23]}  O-O {[%clk 0:02:16]} 12. O-O-O {[%clk 0:02:07]}  e5 {[%clk 0:01:56]} 13. dxe5 {[%clk 0:01:59]}  fxe5 {[%clk 0:01:55]} 14. Bb5 {[%clk 0:01:45]}  Nxg3 {[%clk 0:01:39]} 15. hxg3 {[%clk 0:01:44]}  Bf5 {[%clk 0:01:34]} 16. Nh4 {[%clk 0:01:09]}  Be6 {[%clk 0:01:27]} 17. f4 {[%clk 0:00:59]}  Qc7 {[%clk 0:01:01]} 18. Nhf3 {[%clk 0:00:40]}  Bf5 {[%clk 0:00:48]} 19. Bxc6 {[%clk 0:00:21]}  Qxc6 {[%clk 0:00:49]} 20. fxe5 {[%clk 0:00:22]}  Qxc3+ {[%clk 0:00:49]} 21. bxc3 {[%clk 0:00:07]}  Ba3# {[%clk 0:00:50]} 0-1


[Site "https://www.chess.com"]

[Event "Titled Tuesday Blitz May 9 Late 2023"]
[White "Sokolov, Andrei"]
[Black "Bordi, Kevin"]
[WhiteFideId "11600306"]
[BlackFideId "621862"]
[WhiteElo "2473"]
[BlackElo "2742"]
[Result "0-1"]
[Round "02"]
[TimeControl "180+2"]
[Date "2023.05.09"]
[WhiteClock "0:00:15"]
[BlackClock "0:02:08"]

1. d4 {[%clk 0:03:00]}  d5 {[%clk 0:02:59]} 2. c4 {[%clk 0:03:00]}  c6 {[%clk 0:02:59]} 3. g3 {[%clk 0:02:59]}  Nf6 {[%clk 0:03:00]} 4. Nf3 {[%clk 0:03:00]}  Bf5 {[%clk 0:03:01]} 5. Bg2 {[%clk 0:02:59]}  e6 {[%clk 0:03:01]} 6. O-O {[%clk 0:02:59]}  Nbd7 {[%clk 0:03:02]} 7. Qb3 {[%clk 0:02:58]}  Qb6 {[%clk 0:03:02]} 8. Nc3 {[%clk 0:02:58]}  Be7 {[%clk 0:03:01]} 9. c5 {[%clk 0:02:55]}  Qxb3 {[%clk 0:03:01]} 10. axb3 {[%clk 0:02:55]}  O-O {[%clk 0:03:02]} 11. b4 {[%clk 0:02:55]}  a6 {[%clk 0:03:02]} 12. Bf4 {[%clk 0:02:53]}  Rfe8 {[%clk 0:03:02]} 13. h3 {[%clk 0:02:53]}  Ne4 {[%clk 0:03:00]} 14. g4 {[%clk 0:02:48]}  Bg6 {[%clk 0:02:59]} 15. Nd2 {[%clk 0:02:43]}  Nxd2 {[%clk 0:02:58]} 16. Bxd2 {[%clk 0:02:43]}  Bf6 {[%clk 0:02:59]} 17. e3 {[%clk 0:02:36]}  e5 {[%clk 0:03:00]} 18. dxe5 {[%clk 0:01:42]}  Nxe5 {[%clk 0:03:01]} 19. b3 {[%clk 0:01:29]}  Bc2 {[%clk 0:02:41]} 20. g5 {[%clk 0:01:18]}  Be7 {[%clk 0:02:29]} 21. f4 {[%clk 0:01:09]}  Nd3 {[%clk 0:02:24]} 22. Ne2 {[%clk 0:00:59]}  Bxb3 {[%clk 0:02:21]} 23. Nd4 {[%clk 0:01:00]}  Bc4 {[%clk 0:02:20]} 24. Rf3 {[%clk 0:00:49]}  a5 {[%clk 0:02:15]} 25. Nf5 {[%clk 0:00:40]}  Bf8 {[%clk 0:02:13]} 26. Rg3 {[%clk 0:00:30]}  axb4 {[%clk 0:02:10]} 27. Nh6+ {[%clk 0:00:30]}  gxh6 {[%clk 0:02:07]} 28. gxh6+ {[%clk 0:00:15]}  Kh8 {[%clk 0:02:08]} 0-1


[Site "https://www.chess.com"]

[Event "Titled Tuesday Blitz May 9 Late 2023"]
[White "Perez Rodriguez, Jennifer"]
[Black "Prohaszka, Peter"]
[WhiteFideId "3507831"]
[BlackFideId "726265"]
[WhiteElo "2116"]
[BlackElo "2626"]
[Result "0-1"]
[Round "02"]
[TimeControl "180+2"]
[Date "2023.05.09"]
[WhiteClock "0:00:00"]
[BlackClock "0:00:08"]

1. e4 {[%clk 0:03:00]}  c6 {[%clk 0:02:41]} 2. c4 {[%clk 0:02:59]}  d5 {[%clk 0:02:42]} 3. exd5 {[%clk 0:02:58]}  cxd5 {[%clk 0:02:43]} 4. cxd5 {[%clk 0:02:59]}  Nf6 {[%clk 0:02:44]} 5. Nc3 {[%clk 0:02:58]}  Nxd5 {[%clk 0:02:44]} 6. d4 {[%clk 0:02:57]}  Nc6 {[%clk 0:02:43]} 7. Nf3 {[%clk 0:02:57]}  Be6 {[%clk 0:02:43]} 8. Bd3 {[%clk 0:02:38]}  g6 {[%clk 0:02:42]} 9. O-O {[%clk 0:02:38]}  Bg7 {[%clk 0:02:42]} 10. Re1 {[%clk 0:02:39]}  O-O {[%clk 0:02:41]} 11. Be4 {[%clk 0:02:34]}  Rc8 {[%clk 0:02:25]} 12. Be3 {[%clk 0:02:10]}  Nxc3 {[%clk 0:02:18]} 13. bxc3 {[%clk 0:02:08]}  Bd5 {[%clk 0:02:14]} 14. Bxd5 {[%clk 0:02:03]}  Qxd5 {[%clk 0:02:15]} 15. Qb3 {[%clk 0:02:03]}  Qd7 {[%clk 0:02:15]} 16. Rad1 {[%clk 0:01:31]}  b6 {[%clk 0:02:07]} 17. Qa3 {[%clk 0:01:24]}  Rfe8 {[%clk 0:01:49]} 18. c4 {[%clk 0:01:08]}  Na5 {[%clk 0:01:49]} 19. c5 {[%clk 0:00:59]}  Nc4 {[%clk 0:01:49]} 20. Qb3 {[%clk 0:00:51]}  Nxe3 {[%clk 0:01:47]} 21. Qxe3 {[%clk 0:00:51]}  Qd5 {[%clk 0:01:29]} 22. Rc1 {[%clk 0:00:46]}  Qxa2 {[%clk 0:01:19]} 23. Ra1 {[%clk 0:00:46]}  Qd5 {[%clk 0:01:12]} 24. Rxa7 {[%clk 0:00:47]}  bxc5 {[%clk 0:01:12]} 25. dxc5 {[%clk 0:00:47]}  Bf6 {[%clk 0:00:56]} 26. Rc1 {[%clk 0:00:38]}  Rc6 {[%clk 0:00:46]} 27. h3 {[%clk 0:00:33]}  Rec8 {[%clk 0:00:42]} 28. Qf4 {[%clk 0:00:28]}  Rxc5 {[%clk 0:00:31]} 29. Rxc5 {[%clk 0:00:28]}  Qxc5 {[%clk 0:00:31]} 30. Rb7 {[%clk 0:00:25]}  Kg7 {[%clk 0:00:26]} 31. Rb8 {[%clk 0:00:24]}  Qc1+ {[%clk 0:00:19]} 32. Qxc1 {[%clk 0:00:23]}  Rxc1+ {[%clk 0:00:20]} 33. Kh2 {[%clk 0:00:23]}  Rc2 {[%clk 0:00:20]} 34. Kg1 {[%clk 0:00:22]}  Ra2 {[%clk 0:00:18]} 35. Rb7 {[%clk 0:00:20]}  h5 {[%clk 0:00:13]} 36. h4 {[%clk 0:00:19]}  e5 {[%clk 0:00:12]} 37. Rb4 {[%clk 0:00:18]}  Re2 {[%clk 0:00:11]} 38. Kf1 {[%clk 0:00:17]}  Rc2 {[%clk 0:00:10]} 39. Re4 {[%clk 0:00:16]}  Rc5 {[%clk 0:00:09]} 40. Re2 {[%clk 0:00:15]}  Ra5 {[%clk 0:00:09]} 41. Rc2 {[%clk 0:00:16]}  e4 {[%clk 0:00:09]} 42. Nd2 {[%clk 0:00:14]}  e3 {[%clk 0:00:06]} 43. Nc4 {[%clk 0:00:11]}  Ra1+ {[%clk 0:00:06]} 44. Ke2 {[%clk 0:00:12]}  exf2 {[%clk 0:00:06]} 45. Kxf2 {[%clk 0:00:11]}  Bxh4+ {[%clk 0:00:06]} 46. Kf3 {[%clk 0:00:11]}  Bf6 {[%clk 0:00:06]} 47. Ne3 {[%clk 0:00:11]}  Ra3 {[%clk 0:00:06]} 48. Ke2 {[%clk 0:00:10]}  Bg5 {[%clk 0:00:06]} 49. Nc4 {[%clk 0:00:09]}  Ra7 {[%clk 0:00:06]} 50. Rb2 {[%clk 0:00:08]}  Re7+ {[%clk 0:00:07]} 51. Kf3 {[%clk 0:00:08]}  Bf6 {[%clk 0:00:08]} 52. Rb5 {[%clk 0:00:08]}  Rd7 {[%clk 0:00:08]} 53. Nd2 {[%clk 0:00:00]}  Rxd2 {[%clk 0:00:08]} 0-1


[Site "https://www.chess.com"]

[Event "Titled Tuesday Blitz May 9 Late 2023"]
[White "Timmermans, Mark"]
[Black "Storey, Charles H"]
[WhiteFideId "1026399"]
[BlackFideId "406686"]
[WhiteElo "2460"]
[BlackElo "2196"]
[Result "1-0"]
[Round "02"]
[TimeControl "180+2"]
[Date "2023.05.09"]
[WhiteClock "0:01:10"]
[BlackClock "0:00:05"]

1. e4 {[%clk 0:02:57]}  e5 {[%clk 0:02:59]} 2. Nf3 {[%clk 0:02:51]}  Nc6 {[%clk 0:02:59]} 3. d4 {[%clk 0:02:51]}  exd4 {[%clk 0:02:58]} 4. Nxd4 {[%clk 0:02:52]}  Nf6 {[%clk 0:02:57]} 5. Nxc6 {[%clk 0:02:52]}  bxc6 {[%clk 0:02:57]} 6. e5 {[%clk 0:02:53]}  Qe7 {[%clk 0:02:54]} 7. Qe2 {[%clk 0:02:53]}  Nd5 {[%clk 0:02:51]} 8. h4 {[%clk 0:02:54]}  f6 {[%clk 0:02:43]} 9. c4 {[%clk 0:02:51]}  Nb6 {[%clk 0:02:39]} 10. Rh3 {[%clk 0:02:51]}  fxe5 {[%clk 0:02:23]} 11. Re3 {[%clk 0:02:43]}  d6 {[%clk 0:02:20]} 12. Nc3 {[%clk 0:02:42]}  Be6 {[%clk 0:02:17]} 13. c5 {[%clk 0:02:40]}  Nd5 {[%clk 0:02:09]} 14. Rg3 {[%clk 0:02:29]}  Qxh4 {[%clk 0:01:55]} 15. Bg5 {[%clk 0:02:23]}  Qb4 {[%clk 0:01:55]} 16. Rc1 {[%clk 0:02:19]}  Rb8 {[%clk 0:01:39]} 17. Bd2 {[%clk 0:01:54]}  Qxb2 {[%clk 0:01:32]} 18. Qa6 {[%clk 0:01:54]}  Qb7 {[%clk 0:01:13]} 19. Qa4 {[%clk 0:01:54]}  Nxc3 {[%clk 0:00:56]} 20. Rgxc3 {[%clk 0:01:55]}  d5 {[%clk 0:00:35]} 21. Rb3 {[%clk 0:01:46]}  Qa8 {[%clk 0:00:30]} 22. Rxb8+ {[%clk 0:01:47]}  Qxb8 {[%clk 0:00:30]} 23. Qxc6+ {[%clk 0:01:48]}  Kf7 {[%clk 0:00:28]} 24. Bd3 {[%clk 0:01:46]}  e4 {[%clk 0:00:26]} 25. Rb1 {[%clk 0:01:38]}  Qd8 {[%clk 0:00:25]} 26. Be2 {[%clk 0:01:34]}  Qh4 {[%clk 0:00:20]} 27. Qxc7+ {[%clk 0:01:31]}  Be7 {[%clk 0:00:20]} 28. Rb7 {[%clk 0:01:22]}  Rc8 {[%clk 0:00:19]} 29. Qd6 {[%clk 0:01:11]}  Qh1+ {[%clk 0:00:16]} 30. Bf1 {[%clk 0:01:11]}  Re8 {[%clk 0:00:16]} 31. Bg5 {[%clk 0:01:10]}  d4 {[%clk 0:00:13]} 32. Rxe7+ {[%clk 0:01:09]}  Rxe7 {[%clk 0:00:13]} 33. Qxe7+ {[%clk 0:01:10]}  Kg6 {[%clk 0:00:13]} 34. Qxe6+ {[%clk 0:01:10]}  Kxg5 {[%clk 0:00:14]} 35. Qe5+ {[%clk 0:01:11]}  Kh6 {[%clk 0:00:13]} 36. Qxe4 {[%clk 0:01:12]}  Qh5 {[%clk 0:00:11]} 37. Qxd4 {[%clk 0:01:09]}  Qe8+ {[%clk 0:00:07]} 38. Qe3+ {[%clk 0:01:09]}  Qxe3+ {[%clk 0:00:05]} 39. fxe3 {[%clk 0:01:10]} 1-0


[Site "https://www.chess.com"]

[Event "Titled Tuesday Blitz May 9 Late 2023"]
[White "Nazari, Arad"]
[Black "Przybylski, Wojciech"]
[WhiteFideId "12577324"]
[BlackFideId "1117599"]
[WhiteElo "2175"]
[BlackElo "2222"]
[Result "1-0"]
[Round "02"]
[TimeControl "180+2"]
[Date "2023.05.09"]
[WhiteClock "0:01:16"]
[BlackClock "0:00:09"]

1. e4 {[%clk 0:02:55]}  e5 {[%clk 0:02:57]} 2. f4 {[%clk 0:02:52]}  d5 {[%clk 0:02:56]} 3. exd5 {[%clk 0:02:52]}  exf4 {[%clk 0:02:56]} 4. Nf3 {[%clk 0:02:52]}  Nf6 {[%clk 0:02:55]} 5. Bb5+ {[%clk 0:02:53]}  c6 {[%clk 0:02:55]} 6. dxc6 {[%clk 0:02:53]}  bxc6 {[%clk 0:02:52]} 7. Bc4 {[%clk 0:02:53]}  Bd6 {[%clk 0:02:50]} 8. Qe2+ {[%clk 0:02:52]}  Qe7 {[%clk 0:02:42]} 9. Qxe7+ {[%clk 0:02:51]}  Kxe7 {[%clk 0:02:42]} 10. d4 {[%clk 0:02:51]}  h6 {[%clk 0:02:39]} 11. O-O {[%clk 0:02:49]}  Re8 {[%clk 0:02:38]} 12. Ne5 {[%clk 0:02:44]}  Nd5 {[%clk 0:01:56]} 13. Nxc6+ {[%clk 0:02:33]}  Nxc6 {[%clk 0:01:55]} 14. Bxd5 {[%clk 0:02:34]}  Bd7 {[%clk 0:01:16]} 15. Bxf4 {[%clk 0:02:25]}  Bxf4 {[%clk 0:01:15]} 16. Rxf4 {[%clk 0:02:26]}  f6 {[%clk 0:01:15]} 17. Nc3 {[%clk 0:02:17]}  Rab8 {[%clk 0:01:14]} 18. Re1+ {[%clk 0:02:15]}  Kd6 {[%clk 0:01:12]} 19. Rxe8 {[%clk 0:02:13]}  Rxe8 {[%clk 0:01:10]} 20. Bxc6 {[%clk 0:02:07]}  Bxc6 {[%clk 0:01:10]} 21. Kf2 {[%clk 0:02:06]}  h5 {[%clk 0:01:05]} 22. g3 {[%clk 0:01:56]}  Rb8 {[%clk 0:01:04]} 23. b3 {[%clk 0:01:54]}  Rd8 {[%clk 0:00:59]} 24. d5 {[%clk 0:01:47]}  Be8 {[%clk 0:00:56]} 25. Rd4 {[%clk 0:01:44]}  f5 {[%clk 0:00:51]} 26. Ne2 {[%clk 0:01:41]}  g5 {[%clk 0:00:49]} 27. h4 {[%clk 0:01:40]}  g4 {[%clk 0:00:42]} 28. c4 {[%clk 0:01:39]}  Ke5 {[%clk 0:00:39]} 29. Rd2 {[%clk 0:01:39]}  Bf7 {[%clk 0:00:38]} 30. Nf4 {[%clk 0:01:39]}  a5 {[%clk 0:00:37]} 31. Ke3 {[%clk 0:01:37]}  Re8 {[%clk 0:00:36]} 32. Re2 {[%clk 0:01:33]}  Rb8 {[%clk 0:00:23]} 33. Kd3+ {[%clk 0:01:33]}  Kd6 {[%clk 0:00:22]} 34. Kd4 {[%clk 0:01:34]}  Rc8 {[%clk 0:00:21]} 35. a3 {[%clk 0:01:29]}  Rb8 {[%clk 0:00:16]} 36. Rb2 {[%clk 0:01:22]}  Re8 {[%clk 0:00:14]} 37. c5+ {[%clk 0:01:22]}  Kd7 {[%clk 0:00:14]} 38. Re2 {[%clk 0:01:23]}  Rb8 {[%clk 0:00:14]} 39. Kc4 {[%clk 0:01:21]}  Be8 {[%clk 0:00:09]} 40. b4 {[%clk 0:01:19]}  Kc7 {[%clk 0:00:09]} 41. Re7+ {[%clk 0:01:15]}  Kd8 {[%clk 0:00:09]} 42. d6 {[%clk 0:01:16]}  Bb5+ {[%clk 0:00:09]} 43. Kd5 {[%clk 0:01:16]}  Ba4 {[%clk 0:00:08]} 44. Ne6+ {[%clk 0:01:16]}  Kc8 {[%clk 0:00:09]} 45. Rc7# {[%clk 0:01:16]} 1-0


[Site "https://www.chess.com"]